[Event "*** MasterClass Titled Tuesday Blitz"]
[Site "Chess.com"]
[Date "2017.12.05"]
[Round "5"]
[White "AlexanderL"]
[Black "Zkid"]
[Result "0-1"]
[WhiteElo "2544"]
[BlackElo "2563"]
[TimeControl "180+2"]
[EndTime "15:10:31 PST"]
[Termination "Zkid won by resignation"]

1. Nf3 {[%clk 0:03:01.9]} 1... d5 {[%clk 0:02:56.3]} 2. e3 {[%clk 0:03:02.5]}
2... c5 {[%clk 0:02:56.9]} 3. b3 {[%clk 0:03:02.4]} 3... Nc6 {[%clk 0:02:56.3]}
4. Bb2 {[%clk 0:03:03.5]} 4... Nf6 {[%clk 0:02:56.6]} 5. Be2 {[%clk 0:02:58.6]}
5... Bf5 {[%clk 0:02:55.1]} 6. O-O {[%clk 0:02:58.5]} 6... e6 {[%clk 0:02:56.2]}
7. Nh4 {[%clk 0:02:54.2]} 7... Bg6 {[%clk 0:02:55.2]} 8. Nxg6 {[%clk 0:02:54.2]}
8... hxg6 {[%clk 0:02:57.1]} 9. c4 {[%clk 0:02:52.5]} 9... d4 {[%clk 0:02:57.6]}
10. Bf3 {[%clk 0:02:52.9]} 10... Qc7 {[%clk 0:02:57]} 11. g3 {[%clk 0:02:50.5]}
11... Rd8 {[%clk 0:02:55.4]} 12. Na3 {[%clk 0:02:45.2]} 12... Ne5 {[%clk
0:02:55.5]} 13. exd4 {[%clk 0:02:37.7]} 13... cxd4 {[%clk 0:02:53.8]} 14. Nb5
{[%clk 0:02:38]} 14... Qb6 {[%clk 0:02:52.8]} 15. Re1 {[%clk 0:02:33.5]} 15...
Nd3 {[%clk 0:02:50.3]} 0-1

[Event "*** MasterClass Titled Tuesday Blitz"]
[Site "Chess.com"]
[Date "2017.12.05"]
[Round "5"]
[White "ZABDIELBLANCO"]
[Black "Sulvyfex"]
[Result "0-1"]
[WhiteElo "1229"]
[BlackElo "1339"]
[TimeControl "180+2"]
[EndTime "15:10:51 PST"]
[Termination "Sulvyfex won by resignation"]

1. d4 {[%clk 0:03:01.9]} 1... d5 {[%clk 0:02:58.7]} 2. c4 {[%clk 0:02:54.4]}
2... c6 {[%clk 0:02:59.7]} 3. Nc3 {[%clk 0:02:54.1]} 3... Nf6 {[%clk 0:03:00.8]}
4. Bf4 {[%clk 0:02:54.8]} 4... Qb6 {[%clk 0:02:59.1]} 5. e3 {[%clk 0:02:55.7]}
5... Qxb2 {[%clk 0:02:57.9]} 6. Na4 {[%clk 0:02:49.3]} 6... Qb4+ {[%clk
0:02:55.3]} 7. Ke2 {[%clk 0:02:40.3]} 7... Qxc4+ {[%clk 0:02:51.1]} 8. Qd3
{[%clk 0:02:20.2]} 8... Qxa4 {[%clk 0:02:49.3]} 9. Nf3 {[%clk 0:02:16.9]} 9...
Qb5 {[%clk 0:02:46.2]} 10. Qxb5 {[%clk 0:02:17.2]} 10... cxb5 {[%clk 0:02:48.1]}
11. Kd2 {[%clk 0:02:19.1]} 11... Bf5 {[%clk 0:02:47.3]} 12. Bxb5+ {[%clk
0:02:18.3]} 12... Nc6 {[%clk 0:02:47.5]} 13. Rab1 {[%clk 0:02:18.9]} 13... Ne4+
{[%clk 0:02:43.2]} 14. Ke2 {[%clk 0:02:18.5]} 14... Nc3+ {[%clk 0:02:42.7]} 15.
Kd2 {[%clk 0:02:09.4]} 15... Nxb1+ {[%clk 0:02:40.8]} 16. Rxb1 {[%clk
0:02:10.5]} 16... Bxb1 {[%clk 0:02:41.4]} 17. Bxc6+ {[%clk 0:02:12.4]} 17...
bxc6 {[%clk 0:02:43.3]} 0-1

[Event "*** MasterClass Titled Tuesday Blitz"]
[Site "Chess.com"]
[Date "2017.12.05"]
[Round "5"]
[White "toad"]
[Black "RookSacrifice_OLD"]
[Result "1-0"]
[WhiteElo "2186"]
[BlackElo "1836"]
[TimeControl "180+2"]
[EndTime "15:11:35 PST"]
[Termination "toad won by checkmate"]

1. d4 {[%clk 0:02:54.7]} 1... Nf6 {[%clk 0:03:00.4]} 2. c4 {[%clk 0:02:56.1]}
2... e6 {[%clk 0:03:01.6]} 3. g3 {[%clk 0:02:57.5]} 3... d5 {[%clk 0:03:02.2]}
4. Nf3 {[%clk 0:02:58.6]} 4... Bb4+ {[%clk 0:03:00.8]} 5. Bd2 {[%clk 0:03:00]}
5... Be7 {[%clk 0:03:02.1]} 6. Bg2 {[%clk 0:03:00.5]} 6... O-O {[%clk
0:03:03.4]} 7. O-O {[%clk 0:03:01.2]} 7... c6 {[%clk 0:03:03]} 8. Qc2 {[%clk
0:03:01.2]} 8... Nbd7 {[%clk 0:03:03.2]} 9. Rd1 {[%clk 0:02:59.2]} 9... b6
{[%clk 0:03:03.3]} 10. Bf4 {[%clk 0:03:00.2]} 10... Ba6 {[%clk 0:02:57.3]} 11.
Ne5 {[%clk 0:02:58.5]} 11... Rc8 {[%clk 0:02:38.4]} 12. cxd5 {[%clk 0:02:58.5]}
12... Nxd5 {[%clk 0:02:39]} 13. Nc3 {[%clk 0:02:49.3]} 13... Nxe5 {[%clk
0:02:35.2]} 14. dxe5 {[%clk 0:02:51.2]} 14... Qe8 {[%clk 0:02:29.9]} 15. Ne4
{[%clk 0:02:50.2]} 15... c5 {[%clk 0:02:16]} 16. Rd2 {[%clk 0:02:36.4]} 16...
Rd8 {[%clk 0:02:10.8]} 17. Rad1 {[%clk 0:02:36.8]} 17... f5 {[%clk 0:02:08.2]}
18. exf6 {[%clk 0:02:35.3]} 18... Nxf6 {[%clk 0:01:59]} 19. Ng5 {[%clk
0:02:36.5]} 19... Rxd2 {[%clk 0:01:50.5]} 20. Rxd2 {[%clk 0:02:37.5]} 20... Qc8
{[%clk 0:01:51.4]} 21. Be5 {[%clk 0:02:27.6]} 21... Nd5 {[%clk 0:01:49.7]} 22.
Qxh7# {[%clk 0:02:25.1]} 1-0

[Event "*** MasterClass Titled Tuesday Blitz"]
[Site "Chess.com"]
[Date "2017.12.05"]
[Round "5"]
[White "NICOLASXD117"]
[Black "Kaphrep"]
[Result "0-1"]
[WhiteElo "1124"]
[BlackElo "2576"]
[TimeControl "180+2"]
[EndTime "15:11:43 PST"]
[Termination "Kaphrep won by resignation"]

1. d4 {[%clk 0:02:58.5]} 1... Nf6 {[%clk 0:02:57.2]} 2. c4 {[%clk 0:02:59.9]}
2... e6 {[%clk 0:02:57.9]} 3. Nc3 {[%clk 0:03:00.7]} 3... d5 {[%clk 0:02:58.7]}
4. Nf3 {[%clk 0:03:00.9]} 4... Nbd7 {[%clk 0:02:59.1]} 5. e3 {[%clk 0:03:01.7]}
5... a6 {[%clk 0:02:59.3]} 6. Bd3 {[%clk 0:03:02.3]} 6... dxc4 {[%clk
0:02:58.9]} 7. Bxc4 {[%clk 0:03:03.1]} 7... b5 {[%clk 0:03:00.1]} 8. Bd3 {[%clk
0:03:00.2]} 8... c5 {[%clk 0:02:57.9]} 9. a3 {[%clk 0:02:52.2]} 9... Bb7 {[%clk
0:02:56.8]} 10. O-O {[%clk 0:02:51.3]} 10... Be7 {[%clk 0:02:56.9]} 11. Ne5
{[%clk 0:02:49.1]} 11... O-O {[%clk 0:02:54.4]} 12. Nxd7 {[%clk 0:02:48.9]}
12... Qxd7 {[%clk 0:02:52.7]} 13. dxc5 {[%clk 0:02:47.3]} 13... Rfd8 {[%clk
0:02:50.3]} 14. b4 {[%clk 0:02:38.7]} 14... Qxd3 {[%clk 0:02:48.5]} 15. Qxd3
{[%clk 0:02:39.5]} 15... Rxd3 {[%clk 0:02:48.1]} 16. Bb2 {[%clk 0:02:39.7]}
16... Rad8 {[%clk 0:02:44.1]} 17. h3 {[%clk 0:02:34.7]} 17... Rd2 {[%clk
0:02:41]} 18. Rab1 {[%clk 0:02:32]} 18... Ne4 {[%clk 0:02:40.7]} 19. Nxe4 {[%clk
0:02:28.5]} 19... Bxe4 {[%clk 0:02:40.4]} 20. Rbd1 {[%clk 0:02:23.7]} 20... Rxd1
{[%clk 0:02:41.2]} 21. Rxd1 {[%clk 0:02:24]} 21... Rxd1+ {[%clk 0:02:43.1]} 22.
Kh2 {[%clk 0:02:23.1]} 22... Rd2 {[%clk 0:02:44.1]} 23. Bd4 {[%clk 0:02:21]}
23... Rxf2 {[%clk 0:02:44.6]} 24. Kg3 {[%clk 0:02:20.7]} 24... Rxg2+ {[%clk
0:02:44.3]} 25. Kf4 {[%clk 0:02:21.3]} 25... f5 {[%clk 0:02:44.8]} 26. Ke5
{[%clk 0:02:21.5]} 26... Kf7 {[%clk 0:02:45.6]} 27. c6 {[%clk 0:02:21.2]} 27...
Bxc6 {[%clk 0:02:46.1]} 28. Bc5 {[%clk 0:02:20.9]} 0-1

[Event "*** MasterClass Titled Tuesday Blitz"]
[Site "Chess.com"]
[Date "2017.12.05"]
[Round "5"]
[White "Marcin"]
[Black "SharkAnto55"]
[Result "1/2-1/2"]
[WhiteElo "2222"]
[BlackElo "2357"]
[TimeControl "180+2"]
[EndTime "15:12:07 PST"]
[Termination "Game drawn by agreement"]

1. d4 {[%clk 0:03:01]} 1... d5 {[%clk 0:02:59.6]} 2. c4 {[%clk 0:03:01.7]} 2...
c6 {[%clk 0:03:01.5]} 3. Nf3 {[%clk 0:03:01.9]} 3... Nf6 {[%clk 0:03:02.4]} 4.
Nc3 {[%clk 0:03:02.8]} 4... dxc4 {[%clk 0:03:01.5]} 5. a4 {[%clk 0:03:02.8]}
5... Bf5 {[%clk 0:03:01.9]} 6. Ne5 {[%clk 0:03:04]} 6... Nbd7 {[%clk 0:03:01.8]}
7. Nxc4 {[%clk 0:03:05]} 7... Qc7 {[%clk 0:03:03.3]} 8. g3 {[%clk 0:03:04.9]}
8... e5 {[%clk 0:03:04.6]} 9. dxe5 {[%clk 0:03:05.7]} 9... Nxe5 {[%clk
0:03:06.5]} 10. Bf4 {[%clk 0:03:06.5]} 10... Nfd7 {[%clk 0:03:07.7]} 11. Bg2
{[%clk 0:03:07.8]} 11... f6 {[%clk 0:03:08.4]} 12. O-O {[%clk 0:02:51.9]} 12...
g5 {[%clk 0:03:08.8]} 13. Nxe5 {[%clk 0:02:52.4]} 13... Nxe5 {[%clk 0:03:10.4]}
14. Bxe5 {[%clk 0:02:42.9]} 14... Qxe5 {[%clk 0:03:10.8]} 15. a5 {[%clk
0:02:44]} 15... a6 {[%clk 0:03:10.5]} 16. Qb3 {[%clk 0:02:42.8]} 16... O-O-O
{[%clk 0:03:00.3]} 17. Na4 {[%clk 0:02:29.4]} 17... Be6 {[%clk 0:02:49.8]} 18.
Qb6 {[%clk 0:02:07.4]} 18... Qc7 {[%clk 0:02:43.8]} 19. Qa7 {[%clk 0:02:03.5]}
19... Qb8 {[%clk 0:02:44.5]} 20. Qe3 {[%clk 0:01:35.7]} 20... Qe5 {[%clk
0:02:44.4]} 21. Qa7 {[%clk 0:01:23.8]} 21... Qb8 {[%clk 0:02:44.5]} 1/2-1/2

[Event "*** MasterClass Titled Tuesday Blitz"]
[Site "Chess.com"]
[Date "2017.12.05"]
[Round "5"]
[White "tigra"]
[Black "Apocalyps999"]
[Result "1-0"]
[WhiteElo "2662"]
[BlackElo "2395"]
[TimeControl "180+2"]
[EndTime "15:12:43 PST"]
[Termination "tigra won by checkmate"]

1. e4 {[%clk 0:03:01.9]} 1... c5 {[%clk 0:02:59.1]} 2. Nf3 {[%clk 0:03:03]} 2...
d6 {[%clk 0:02:59.5]} 3. d4 {[%clk 0:03:03.1]} 3... cxd4 {[%clk 0:03:00.5]} 4.
Nxd4 {[%clk 0:03:05]} 4... Nf6 {[%clk 0:03:01.6]} 5. Nc3 {[%clk 0:03:06.7]} 5...
a6 {[%clk 0:03:02.9]} 6. Bg5 {[%clk 0:03:07.8]} 6... Nbd7 {[%clk 0:02:58.9]} 7.
Qe2 {[%clk 0:03:08.4]} 7... g6 {[%clk 0:02:55.6]} 8. f4 {[%clk 0:03:08.7]} 8...
Bg7 {[%clk 0:02:56.4]} 9. e5 {[%clk 0:03:09.2]} 9... dxe5 {[%clk 0:02:48.5]} 10.
fxe5 {[%clk 0:03:11.1]} 10... Nh5 {[%clk 0:02:34.2]} 11. O-O-O {[%clk
0:02:55.7]} 11... Bxe5 {[%clk 0:02:19.2]} 12. Nd5 {[%clk 0:02:40.1]} 12... Qa5
{[%clk 0:01:20.1]} 13. Nb3 {[%clk 0:02:32.8]} 13... Qxa2 {[%clk 0:01:06.7]} 14.
Qxe5 {[%clk 0:02:32.8]} 14... Nxe5 {[%clk 0:00:16.7]} 15. Nc7+ {[%clk
0:02:33.1]} 15... Kf8 {[%clk 0:00:17]} 16. Bh6+ {[%clk 0:02:34.1]} 16... Kg8
{[%clk 0:00:17]} 17. Rd8# {[%clk 0:02:35.7]} 1-0

[Event "*** MasterClass Titled Tuesday Blitz"]
[Site "Chess.com"]
[Date "2017.12.05"]
[Round "5"]
[White "roncataroja"]
[Black "raphaelfioretti"]
[Result "1-0"]
[WhiteElo "1432"]
[BlackElo "1298"]
[TimeControl "180+2"]
[EndTime "15:12:45 PST"]
[Termination "roncataroja won by checkmate"]

1. e4 {[%clk 0:02:59.5]} 1... c5 {[%clk 0:03:00.8]} 2. f4 {[%clk 0:03:00.1]}
2... d6 {[%clk 0:03:01.7]} 3. Nf3 {[%clk 0:03:01.1]} 3... g6 {[%clk 0:03:02.7]}
4. e5 {[%clk 0:03:02]} 4... dxe5 {[%clk 0:03:03.7]} 5. fxe5 {[%clk 0:03:03.1]}
5... Bg7 {[%clk 0:03:04.5]} 6. c3 {[%clk 0:03:03.3]} 6... Nc6 {[%clk 0:03:05.3]}
7. d4 {[%clk 0:03:00.7]} 7... cxd4 {[%clk 0:03:06.8]} 8. cxd4 {[%clk 0:03:01.4]}
8... Bg4 {[%clk 0:02:59]} 9. Bb5 {[%clk 0:03:00.4]} 9... Qa5+ {[%clk 0:02:52.5]}
10. Nc3 {[%clk 0:02:59.3]} 10... Bxf3 {[%clk 0:02:45.7]} 11. Qxf3 {[%clk
0:02:59.1]} 11... O-O-O {[%clk 0:02:32.6]} 12. Bxc6 {[%clk 0:02:57.4]} 12...
bxc6 {[%clk 0:02:31.9]} 13. Qxc6+ {[%clk 0:02:57.6]} 13... Qc7 {[%clk 0:02:21]}
14. Qa8+ {[%clk 0:02:49.5]} 14... Qb8 {[%clk 0:02:10.8]} 15. Qc6+ {[%clk
0:02:40.5]} 15... Qc7 {[%clk 0:02:11.6]} 16. Qa8+ {[%clk 0:02:40]} 16... Qb8
{[%clk 0:02:12.7]} 17. Qe4 {[%clk 0:02:39.1]} 17... Qb6 {[%clk 0:01:59.5]} 18.
Ne2 {[%clk 0:02:32.5]} 18... e6 {[%clk 0:01:51.2]} 19. O-O {[%clk 0:02:31]}
19... Ne7 {[%clk 0:01:50.8]} 20. Rxf7 {[%clk 0:02:29.7]} 20... Nc6 {[%clk
0:01:34.8]} 21. Rxg7 {[%clk 0:02:23.8]} 21... Nxd4 {[%clk 0:01:35.5]} 22. Nxd4
{[%clk 0:02:11.7]} 22... Rxd4 {[%clk 0:01:26.5]} 23. Qa8+ {[%clk 0:02:10.6]}
23... Qb8 {[%clk 0:01:26.4]} 24. Qc6+ {[%clk 0:02:10.3]} 24... Kd8 {[%clk
0:01:25.9]} 25. Bg5# {[%clk 0:02:10.6]} 1-0

[Event "*** MasterClass Titled Tuesday Blitz"]
[Site "Chess.com"]
[Date "2017.12.05"]
[Round "5"]
[White "Salem-AR"]
[Black "VladDobrov"]
[Result "1-0"]
[WhiteElo "2825"]
[BlackElo "2613"]
[TimeControl "180+2"]
[EndTime "15:14:25 PST"]
[Termination "Salem-AR won by resignation"]

1. Nf3 {[%clk 0:03:01.9]} 1... Nf6 {[%clk 0:03:00.2]} 2. c4 {[%clk 0:03:03.5]}
2... c6 {[%clk 0:03:00]} 3. d4 {[%clk 0:03:04.5]} 3... d5 {[%clk 0:03:01.3]} 4.
Nc3 {[%clk 0:03:06.2]} 4... e6 {[%clk 0:03:02.3]} 5. Bg5 {[%clk 0:03:07.4]} 5...
h6 {[%clk 0:03:03.6]} 6. Bh4 {[%clk 0:03:08.5]} 6... Be7 {[%clk 0:02:55.6]} 7.
e3 {[%clk 0:03:09.5]} 7... O-O {[%clk 0:02:54.2]} 8. Qc2 {[%clk 0:03:10.9]} 8...
Nbd7 {[%clk 0:02:55.1]} 9. Rd1 {[%clk 0:03:12.4]} 9... a6 {[%clk 0:02:38.8]} 10.
Be2 {[%clk 0:03:13.1]} 10... dxc4 {[%clk 0:02:39.2]} 11. Bxc4 {[%clk 0:03:15]}
11... b5 {[%clk 0:02:40.4]} 12. Be2 {[%clk 0:03:16]} 12... Qb6 {[%clk
0:02:32.6]} 13. O-O {[%clk 0:03:16]} 13... c5 {[%clk 0:02:32]} 14. a4 {[%clk
0:02:42.3]} 14... b4 {[%clk 0:02:25.3]} 15. Ne4 {[%clk 0:02:43.4]} 15... Bb7
{[%clk 0:02:23.2]} 16. Nxf6+ {[%clk 0:02:21.5]} 16... Nxf6 {[%clk 0:02:18.8]}
17. Bxf6 {[%clk 0:02:20.5]} 17... b3 {[%clk 0:01:54.5]} 18. Qc4 {[%clk
0:01:58.6]} 18... Bxf6 {[%clk 0:01:37.6]} 19. dxc5 {[%clk 0:01:59.3]} 19... Qa5
{[%clk 0:01:29.1]} 20. c6 {[%clk 0:01:31.1]} 20... Rac8 {[%clk 0:01:24.4]} 21.
Nd4 {[%clk 0:01:25.4]} 21... Qb6 {[%clk 0:01:01.5]} 22. Bf3 {[%clk 0:01:05.2]}
22... Bxd4 {[%clk 0:00:58.3]} 23. a5 {[%clk 0:01:06.4]} 23... Qb5 {[%clk
0:00:43.5]} 24. Qxb5 {[%clk 0:01:03.1]} 24... axb5 {[%clk 0:00:44.5]} 25. cxb7
{[%clk 0:01:04.2]} 1-0

[Event "*** MasterClass Titled Tuesday Blitz"]
[Site "Chess.com"]
[Date "2017.12.05"]
[Round "5"]
[White "PenguinPacks"]
[Black "dyziotomi99"]
[Result "0-1"]
[WhiteElo "2265"]
[BlackElo "2449"]
[TimeControl "180+2"]
[EndTime "15:14:43 PST"]
[Termination "dyziotomi99 won by resignation"]

1. e4 {[%clk 0:03:01.9]} 1... c5 {[%clk 0:03:00.4]} 2. Nf3 {[%clk 0:03:02.9]}
2... d6 {[%clk 0:03:01.4]} 3. Bc4 {[%clk 0:02:50.3]} 3... Nf6 {[%clk 0:03:01.7]}
4. d3 {[%clk 0:02:50.4]} 4... e6 {[%clk 0:03:01.9]} 5. Nbd2 {[%clk 0:02:46.3]}
5... Be7 {[%clk 0:03:00.8]} 6. O-O {[%clk 0:02:46.6]} 6... O-O {[%clk
0:02:58.7]} 7. c3 {[%clk 0:02:46.6]} 7... Nc6 {[%clk 0:02:59]} 8. a4 {[%clk
0:02:42.2]} 8... d5 {[%clk 0:02:58.6]} 9. Ba2 {[%clk 0:02:42.8]} 9... b6 {[%clk
0:02:58.5]} 10. Re1 {[%clk 0:02:43]} 10... Ba6 {[%clk 0:02:57.2]} 11. e5 {[%clk
0:02:31.7]} 11... Nd7 {[%clk 0:02:57.1]} 12. d4 {[%clk 0:02:32.7]} 12... cxd4
{[%clk 0:02:56.6]} 13. cxd4 {[%clk 0:02:34.6]} 13... Nb4 {[%clk 0:02:55.5]} 14.
Bb1 {[%clk 0:02:35.2]} 14... Nd3 {[%clk 0:02:54.6]} 15. Re3 {[%clk 0:02:33.1]}
15... Nxc1 {[%clk 0:02:50.2]} 16. Qxc1 {[%clk 0:02:35]} 16... Rc8 {[%clk
0:02:49.9]} 17. Qd1 {[%clk 0:02:18.9]} 17... Nb8 {[%clk 0:02:43.5]} 18. h4
{[%clk 0:00:53.4]} 18... Nc6 {[%clk 0:02:30.9]} 19. h5 {[%clk 0:00:42]} 19...
Nb4 {[%clk 0:02:26.5]} 20. Ne1 {[%clk 0:00:05]} 20... h6 {[%clk 0:02:10.2]} 21.
Qg4 {[%clk 0:00:02.7]} 21... Kh8 {[%clk 0:02:06.5]} 22. Rg3 {[%clk 0:00:03.9]}
22... Rg8 {[%clk 0:02:06.7]} 23. f4 {[%clk 0:00:05]} 23... Rc1 {[%clk
0:02:04.4]} 24. Re3 {[%clk 0:00:05.1]} 24... Nc6 {[%clk 0:02:02]} 25. Nf3 {[%clk
0:00:05.8]} 25... Nxd4 {[%clk 0:01:52.3]} 26. Nxd4 {[%clk 0:00:06.6]} 26... Bc5
{[%clk 0:01:53.1]} 27. f5 {[%clk 0:00:03.8]} 27... Qg5 {[%clk 0:01:46.4]} 28.
Qxg5 {[%clk 0:00:04.6]} 28... hxg5 {[%clk 0:01:47.3]} 29. fxe6 {[%clk
0:00:05.7]} 29... fxe6 {[%clk 0:01:42.8]} 30. Kf2 {[%clk 0:00:07.6]} 30... Bxd4
{[%clk 0:01:43.3]} 0-1

[Event "*** MasterClass Titled Tuesday Blitz"]
[Site "Chess.com"]
[Date "2017.12.05"]
[Round "5"]
[White "Margency"]
[Black "GameOverBro"]
[Result "0-1"]
[WhiteElo "2486"]
[BlackElo "2310"]
[TimeControl "180+2"]
[EndTime "15:14:50 PST"]
[Termination "GameOverBro won by resignation"]

1. e4 {[%clk 0:03:01.9]} 1... d6 {[%clk 0:02:56.8]} 2. d4 {[%clk 0:03:02.5]}
2... Nf6 {[%clk 0:02:57.4]} 3. Nc3 {[%clk 0:03:04.1]} 3... e5 {[%clk 0:02:58.4]}
4. Nf3 {[%clk 0:03:05.1]} 4... Nbd7 {[%clk 0:02:58.1]} 5. Bc4 {[%clk 0:03:06.3]}
5... Be7 {[%clk 0:02:58.5]} 6. a4 {[%clk 0:03:07.9]} 6... c6 {[%clk 0:02:59.1]}
7. O-O {[%clk 0:03:08.9]} 7... h6 {[%clk 0:02:59.2]} 8. Re1 {[%clk 0:03:10.2]}
8... Qc7 {[%clk 0:03:00.1]} 9. a5 {[%clk 0:03:07.9]} 9... Nf8 {[%clk 0:03:00.4]}
10. d5 {[%clk 0:03:07.6]} 10... Ng6 {[%clk 0:02:58]} 11. b3 {[%clk 0:03:03.2]}
11... O-O {[%clk 0:02:57.7]} 12. a6 {[%clk 0:03:01.7]} 12... b5 {[%clk
0:02:57.8]} 13. Bd3 {[%clk 0:02:59.5]} 13... b4 {[%clk 0:02:57.7]} 14. Na4
{[%clk 0:02:56.1]} 14... cxd5 {[%clk 0:02:22.2]} 15. exd5 {[%clk 0:02:55.6]}
15... e4 {[%clk 0:02:22.4]} 16. Bxe4 {[%clk 0:02:54.8]} 16... Nxe4 {[%clk
0:02:23.1]} 17. Rxe4 {[%clk 0:02:55.4]} 17... Bf6 {[%clk 0:02:23.2]} 18. Bb2
{[%clk 0:02:51.6]} 18... Bf5 {[%clk 0:02:22.2]} 19. Rc4 {[%clk 0:02:51.6]} 19...
Qd8 {[%clk 0:02:19.7]} 20. Bxf6 {[%clk 0:02:51]} 20... Qxf6 {[%clk 0:02:21.1]}
21. Rxb4 {[%clk 0:02:49.7]} 21... Rac8 {[%clk 0:02:17]} 22. c4 {[%clk
0:02:48.8]} 22... Rfe8 {[%clk 0:02:17]} 23. Rb7 {[%clk 0:02:46.4]} 23... Bg4
{[%clk 0:02:12.5]} 24. Qd4 {[%clk 0:02:29.6]} 24... Qf5 {[%clk 0:01:55.3]} 25.
Nd2 {[%clk 0:02:05.3]} 25... Nf4 {[%clk 0:01:43]} 26. Kh1 {[%clk 0:02:06.1]}
26... Re5 {[%clk 0:01:06.8]} 27. Rg1 {[%clk 0:01:17.3]} 27... Ne2 {[%clk
0:01:00.3]} 28. Qxa7 {[%clk 0:01:17.8]} 28... Nxg1 {[%clk 0:00:59.7]} 29. f3
{[%clk 0:01:07.5]} 29... Re1 {[%clk 0:00:58.7]} 0-1

[Event "*** MasterClass Titled Tuesday Blitz"]
[Site "Chess.com"]
[Date "2017.12.05"]
[Round "5"]
[White "juniortay"]
[Black "SanQui14"]
[Result "1/2-1/2"]
[WhiteElo "2300"]
[BlackElo "2179"]
[TimeControl "180+2"]
[EndTime "15:14:50 PST"]
[Termination "Game drawn by agreement"]

1. e4 {[%clk 0:03:01.9]} 1... c5 {[%clk 0:02:58.1]} 2. Nc3 {[%clk 0:03:01.8]}
2... g6 {[%clk 0:02:58.6]} 3. f4 {[%clk 0:03:02.7]} 3... Bg7 {[%clk 0:03:00.5]}
4. Nf3 {[%clk 0:03:04.1]} 4... Nc6 {[%clk 0:03:00.3]} 5. Bb5 {[%clk 0:03:05.1]}
5... Nd4 {[%clk 0:03:01.7]} 6. O-O {[%clk 0:03:05.7]} 6... Nxb5 {[%clk 0:03:03]}
7. Nxb5 {[%clk 0:03:07.2]} 7... d5 {[%clk 0:03:04.4]} 8. exd5 {[%clk 0:02:51.2]}
8... a6 {[%clk 0:03:05.3]} 9. Nc3 {[%clk 0:02:51.4]} 9... b5 {[%clk 0:03:05.3]}
10. d3 {[%clk 0:02:48.9]} 10... Bb7 {[%clk 0:03:04]} 11. f5 {[%clk 0:02:48.8]}
11... Nf6 {[%clk 0:03:04.4]} 12. Bg5 {[%clk 0:02:44.2]} 12... O-O {[%clk
0:03:01.5]} 13. fxg6 {[%clk 0:02:44.3]} 13... hxg6 {[%clk 0:03:01.8]} 14. Qe1
{[%clk 0:02:45.6]} 14... b4 {[%clk 0:03:00.4]} 15. Ne4 {[%clk 0:02:45.8]} 15...
Qxd5 {[%clk 0:02:58]} 16. Qh4 {[%clk 0:02:46.1]} 16... Nxe4 {[%clk 0:02:41.8]}
17. dxe4 {[%clk 0:02:45.5]} 17... Qxe4 {[%clk 0:02:43.1]} 18. Qg3 {[%clk
0:02:18.2]} 18... Rfe8 {[%clk 0:02:39.6]} 19. Rae1 {[%clk 0:02:15]} 19... Qxc2
{[%clk 0:02:38.8]} 20. Bxe7 {[%clk 0:02:16]} 20... Qxb2 {[%clk 0:02:38]} 21. Ng5
{[%clk 0:02:10.1]} 21... Bd5 {[%clk 0:02:37]} 22. Kh1 {[%clk 0:02:00.8]} 22...
Rac8 {[%clk 0:02:26.3]} 23. Qh3 {[%clk 0:01:44.5]} 23... Qxg2+ {[%clk
0:01:55.7]} 24. Qxg2 {[%clk 0:01:43.7]} 24... Bxg2+ {[%clk 0:01:57.6]} 25. Kxg2
{[%clk 0:01:44.5]} 25... Bc3 {[%clk 0:01:57.6]} 26. Re2 {[%clk 0:01:43]} 26...
f6 {[%clk 0:01:56.4]} 27. Ne4 {[%clk 0:01:25.7]} 27... Rxe7 {[%clk 0:01:44.3]}
28. Nxc3 {[%clk 0:01:26.3]} 28... Rd7 {[%clk 0:01:44.4]} 29. Ne4 {[%clk
0:01:24.8]} 29... Rd4 {[%clk 0:01:36.7]} 30. Rxf6 {[%clk 0:01:15.4]} 30... Kg7
{[%clk 0:01:38]} 31. Rxa6 {[%clk 0:01:16.2]} 31... Re8 {[%clk 0:01:35.1]} 32.
Ng3 {[%clk 0:00:49.9]} 32... Rxe2+ {[%clk 0:01:31]} 33. Nxe2 {[%clk 0:00:51.8]}
33... Rd2 {[%clk 0:01:32.9]} 34. Kf3 {[%clk 0:00:51.7]} 34... c4 {[%clk
0:01:34.8]} 35. Rc6 {[%clk 0:00:51.8]} 35... c3 {[%clk 0:01:34.9]} 36. Nxc3
{[%clk 0:00:46.8]} 36... bxc3 {[%clk 0:01:33.1]} 37. Rxc3 {[%clk 0:00:47.6]}
37... Rxa2 {[%clk 0:01:34.3]} 38. Kg3 {[%clk 0:00:47.7]} 38... Kh6 {[%clk
0:01:34.7]} 1/2-1/2